bitfinex/quotes_BTCUSD_20241001
["timestamp","ask_amount","ask_price","bid_price","bid_amount"]
[1727811987598,0.1564578,61947.0,61943.0,0.193724]
[1727811987843,0.1564578,61947.0,61942.0,0.004]
[1727811987844,0.3501718,61947.0,61942.0,0.004]
[1727811988097,0.193721,61945.0,61942.0,0.004]
[1727811988347,0.1564578,61944.0,61940.0,0.000821]
[1727811988581,0.87920564,61944.0,61940.0,0.000821]
[1727811988806,0.87920564,61944.0,61928.0,0.24056967]
[1727811988807,0.193747,61937.0,61931.0,0.193762]
[1727811989018,0.193747,61937.0,61928.0,0.387543]
[1727811989019,0.0979,61936.0,61928.0,0.387543]
[1727811989237,0.1564578,61935.0,61928.0,0.387543]
[1727811989450,0.1564578,61935.0,61929.0,0.193768]
[1727811989900,0.00968557,61934.0,61929.0,0.193768]
[1727811990127,0.20223684,61933.0,61931.0,0.004]
[1727811990348,0.1564578,61933.0,61930.0,0.193766]
[1727811990564,0.1564578,61933.0,61920.0,0.24056967]
[1727811990565,0.0096409,61932.0,61931.0,0.193764]
[1727811990999,0.2543578,61936.0,61933.0,0.193754]
[1727811991215,0.2543578,61936.0,61934.0,0.193753]
[1727811991448,0.2543578,61936.0,61932.0,0.38752]
[1727811991449,0.0979,61936.0,61935.0,0.193751]
[1727811991665,0.0979,61936.0,61933.0,0.387514]
[1727811991666,0.24056967,61943.0,61940.0,0.387469]
[1727811991881,0.1564578,61942.0,61934.0,0.387504]
[1727811992094,0.1564578,61942.0,61941.0,0.193732]
[1727811992591,0.1564578,61942.0,61937.0,0.387485]
[1727811992592,0.0986,61945.0,61937.0,0.387485]
[1727811992810,0.2550578,61945.0,61944.0,0.192723]
[1727811993281,0.0986,61945.0,61944.0,0.192723]
[1727811993515,0.24056967,61951.0,61949.0,0.193705]
[1727811993748,0.1564578,61950.0,61934.0,0.023]
[1727811993988,0.1564578,61950.0,61946.0,0.193714]
[1727811994203,0.1564578,61950.0,61943.0,0.387452]
[1727811994415,0.1564578,61950.0,61948.0,0.193709]
[1727811994630,0.1564578,61950.0,61947.0,0.193711]
[1727811994859,0.1564578,61950.0,61948.0,0.19371]
[1727811995314,0.1564578,61950.0,61946.0,0.193714]
[1727811995534,0.1584578,61950.0,61945.0,0.387439]
[1727811995764,0.1584578,61950.0,61944.0,0.004]
[1727811995765,0.24227158,61950.0,61944.0,0.193721]
[1727811996258,0.24227158,61950.0,61943.0,0.387448]
[1727811996259,0.24327158,61950.0,61945.0,0.193719]
[1727811996494,0.24327158,61950.0,61944.0,0.387445]
[1727811996495,0.24227158,61950.0,61944.0,0.387445]
[1727811996729,0.1594578,61950.0,61948.0,0.193709]
[1727811996994,0.1594578,61950.0,61943.0,0.387452]
[1727811997273,0.193708,61949.0,61945.0,0.193719]
[1727811997517,0.193708,61949.0,61944.0,0.19372]
[1727811997518,0.1564578,61949.0,61944.0,0.19372]
[1727811997768,0.1564578,61949.0,61930.0,0.41509784]
[1727811997769,0.193729,61943.0,61930.0,0.96883]
[1727811998012,0.193729,61943.0,61924.0,0.0777]
[1727811998013,0.1564578,61942.0,61935.0,0.24056967]
[1727811998279,0.1564578,61942.0,61924.0,0.0777]
[1727811998280,0.24056967,61941.0,61934.0,0.387508]
[1727811998521,0.1564578,61940.0,61932.0,0.387518]
[1727811998755,0.193739,61939.0,61934.0,0.193753]
[1727811999029,0.19375,61936.0,61929.0,0.193767]
[1727811999274,0.4464008,61938.0,61935.0,0.008]
[1727811999509,0.2526578,61938.0,61935.0,0.008]
[1727811999769,0.2526578,61938.0,61931.0,0.387526]
[1727811999770,0.40910458,61938.0,61931.0,0.387526]
[1727812000025,0.2526578,61938.0,61934.0,0.009]
[1727812000276,0.2526578,61938.0,61933.0,0.193756]
[1727812000503,0.2566578,61938.0,61933.0,0.193756]
[1727812000733,0.4504018,61938.0,61933.0,0.193755]
[1727812001003,0.4503998,61938.0,61933.0,0.193756]
[1727812001568,0.2566578,61938.0,61933.0,0.387511]
[1727812001830,0.001,61939.0,61938.0,0.216742]
[1727812002075,0.001,61939.0,61938.0,0.215742]
[1727812002315,0.24056967,61941.0,61940.0,0.216735]
[1727812002558,0.0979,61947.0,61946.0,0.193717]
[1727812003103,0.00947683,61947.0,61946.0,0.193717]
[1727812003360,0.03477742,61947.0,61946.0,0.193717]
[1727812003621,0.02530059,61947.0,61946.0,0.193717]
[1727812004614,0.02530059,61947.0,61943.0,0.387447]
[1727812004868,0.02530059,61947.0,61945.0,0.193719]
[1727812005108,0.02530059,61947.0,61946.0,0.198717]
[1727812005341,0.02530059,61947.0,61946.0,0.197717]
[1727812005579,0.02630059,61947.0,61946.0,0.203717]
[1727812005810,0.02630059,61947.0,61946.0,0.199717]
[1727812006051,0.02530059,61947.0,61946.0,0.193717]
[1727812006292,0.02530059,61947.0,61946.0,0.216717]
[1727812006534,0.02530059,61947.0,61946.0,0.395317]
[1727812006803,0.02530059,61947.0,61946.0,0.5517748]
[1727812007041,0.02630059,61947.0,61946.0,0.5577748]
[1727812008058,0.02630059,61947.0,61946.0,0.395317]
[1727812008310,0.02530059,61947.0,61946.0,0.395317]
[1727812008561,0.02630059,61947.0,61946.0,0.403317]
[1727812008813,0.02530059,61947.0,61946.0,0.395317]
[1727812009104,0.02730059,61947.0,61946.0,0.417317]
[1727812009316,0.02630059,61947.0,61946.0,0.409317]
[1727812009558,0.02730059,61947.0,61946.0,0.338717]
[1727812010059,0.02630059,61947.0,61946.0,0.330717]
[1727812011009,0.02630059,61947.0,61946.0,0.316717]
[1727812011010,0.02530059,61947.0,61946.0,0.316717]
[1727812011228,0.02630059,61947.0,61946.0,0.324717]
[1727812011448,0.02630059,61947.0,61946.0,0.329717]
[1727812011699,0.02630059,61947.0,61946.0,0.82947264]
[1727812011938,0.02630059,61947.0,61946.0,0.81647264]
[1727812012166,0.02630059,61947.0,61946.0,0.89677264]
[1727812012393,0.002,61947.0,61946.0,0.90877264]
[1727812012627,0.001,61947.0,61946.0,0.90277264]
[1727812012864,0.02529587,61956.0,61955.0,0.193688]
[1727812013073,0.02529587,61956.0,61955.0,0.216688]
[1727812014939,0.02529587,61956.0,61955.0,0.203688]
[1727812015377,0.02693787,61956.0,61955.0,0.193688]
[1727812015598,0.02793787,61956.0,61955.0,0.210688]
[1727812016548,0.02793787,61956.0,61955.0,0.233688]
[1727812023686,0.02793787,61956.0,61955.0,0.46054904]
[1727812023911,0.02793787,61956.0,61955.0,0.4573213]
[1727812024643,0.02793787,61956.0,61955.0,0.4483213]
[1727812024864,0.02693787,61956.0,61955.0,0.4403213]
[1727812025093,0.02693787,61956.0,61955.0,0.4513213]
[1727812025327,0.02693787,61956.0,61955.0,0.212688]
[1727812025328,0.02793787,61956.0,61955.0,0.212688]
[1727812025557,0.11763787,61956.0,61955.0,0.193688]
[1727812025794,0.12644748,61956.0,61955.0,0.201688]
[1727812026030,0.11863787,61956.0,61955.0,0.201688]
[1727812026689,0.11763787,61956.0,61955.0,0.193688]
[1727812026905,0.11763787,61956.0,61955.0,0.207688]
[1727812027598,0.11763787,61956.0,61955.0,0.193688]
[1727812027815,0.11763787,61956.0,61955.0,0.204688]
[1727812028044,0.11763787,61956.0,61955.0,0.218688]
[1727812028269,0.11763787,61956.0,61955.0,0.193688]
[1727812028713,0.11763787,61956.0,61955.0,0.229688]
[1727812028933,0.02693787,61956.0,61955.0,0.229688]
[1727812029396,0.02693787,61956.0,61955.0,0.56524667]
[1727812029655,0.02693787,61956.0,61955.0,0.72170447]
[1727812029881,0.02693787,61956.0,61955.0,0.82870447]
[1727812030108,0.02693787,61956.0,61955.0,0.83370447]
[1727812030346,0.001642,61956.0,61955.0,0.85104117]
[1727812031046,0.001642,61956.0,61955.0,0.83104117]
[1727812031263,0.002642,61956.0,61955.0,0.84504117]
[1727812031495,0.001642,61956.0,61955.0,0.83104117]
[1727812031712,0.001642,61956.0,61955.0,0.330688]
[1727812031713,0.002642,61956.0,61955.0,0.330688]
[1727812032600,0.001642,61956.0,61955.0,0.216688]
[1727812033032,0.001642,61956.0,61955.0,0.244688]
[1727812033033,0.002642,61956.0,61955.0,0.244688]
[1727812033478,0.002642,61956.0,61955.0,0.230688]
[1727812033953,0.002642,61956.0,61955.0,0.243688]
[1727812034177,0.001642,61956.0,61955.0,0.229688]
[1727812034391,0.002642,61956.0,61955.0,0.243688]
[1727812034615,0.001642,61956.0,61955.0,0.229688]
[1727812034837,0.001642,61956.0,61955.0,0.216688]
[1727812035051,0.001642,61956.0,61955.0,0.240688]
[1727812035052,0.002642,61956.0,61955.0,0.240688]
[1727812035272,0.002642,61956.0,61955.0,0.204688]
[1727812035500,0.002642,61956.0,61955.0,0.217688]
[1727812035723,0.003642,61956.0,61955.0,0.217688]
[1727812035957,0.002642,61956.0,61955.0,0.204688]
[1727812036186,0.003642,61956.0,61955.0,0.203688]
[1727812036636,0.003642,61956.0,61955.0,0.211688]
[1727812037342,0.003642,61956.0,61955.0,0.203688]
[1727812037584,0.003642,61956.0,61955.0,0.211688]
[1727812039355,0.003642,61956.0,61955.0,0.018]
[1727812039585,0.084742,61956.0,61955.0,0.211688]
[1727812040048,0.084742,61956.0,61955.0,0.018]
[1727812040240,0.278427,61956.0,61955.0,0.018]
[1727812040505,0.42083246,61956.0,61955.0,0.018]
[1727812040951,0.57729026,61956.0,61955.0,0.018]
[1727812041170,0.91284893,61956.0,61955.0,0.018]
[1727812041456,0.91284893,61956.0,61940.0,0.100821]
[1727812041457,0.093,61955.0,61940.0,0.000821]
[1727812041684,0.674157,61946.0,61945.0,0.24056967]
[1727812041936,0.193725,61944.0,61940.0,0.24139067]
[1727812042146,0.0781,61943.0,61940.0,0.000821]
[1727812042885,0.193732,61941.0,61940.0,0.000821]
[1727812043319,0.3501898,61941.0,61940.0,0.000821]
[1727812043543,0.4489898,61941.0,61940.0,0.000821]
[1727812043975,0.2552578,61941.0,61940.0,0.004821]
[1727812044463,0.2552578,61941.0,61940.0,0.000821]
[1727812044696,0.0988,61941.0,61940.0,0.194556]
[1727812044933,0.0988,61941.0,61940.0,0.199556]
[1727812045375,0.0988,61941.0,61940.0,0.205556]
[1727812045592,0.0988,61941.0,61940.0,0.199556]
[1727812046032,0.0998,61941.0,61940.0,0.206556]
[1727812046517,0.12510295,61941.0,61940.0,0.206556]
[1727812046777,0.15913992,61941.0,61940.0,0.012821]
[1727812046990,0.12510295,61941.0,61940.0,0.012821]
[1727812047219,0.31883495,61941.0,61940.0,0.012821]
[1727812047447,0.47529275,61941.0,61940.0,0.012821]
[1727812047668,0.69922896,61941.0,61940.0,0.012821]
[1727812047917,0.85567574,61941.0,61940.0,0.012821]
[1727812049615,0.93347574,61941.0,61940.0,0.012821]
[1727812049858,0.93347574,61941.0,61925.0,0.388381]
[1727812049859,0.0953,61931.0,61926.0,0.24056967]
[1727812050160,0.0953,61931.0,61930.0,0.193767]
[1727812050893,0.12060672,61931.0,61930.0,0.193767]
[1727812051849,0.12160672,61931.0,61930.0,0.193767]
[1727812052100,0.12060672,61931.0,61930.0,0.193767]
[1727812052354,0.12060672,61931.0,61930.0,0.196767]
[1727812052609,0.12160672,61931.0,61930.0,0.198767]
[1727812052874,0.02630672,61931.0,61930.0,0.2248393]
[1727812053154,0.02630672,61931.0,61930.0,0.221767]
[1727812053627,0.02630672,61931.0,61930.0,0.218767]
[1727812054087,0.02630672,61931.0,61930.0,0.22499602]
[1727812054311,0.02630672,61931.0,61930.0,0.221767]
[1727812054531,0.02530672,61931.0,61930.0,0.219767]
[1727812055229,0.02530672,61931.0,61930.0,0.223767]
[1727812055674,0.02530672,61931.0,61930.0,0.216767]
[1727812056100,0.02630672,61931.0,61930.0,0.228767]
[1727812056320,0.02630672,61931.0,61930.0,0.205767]
[1727812056556,0.02630672,61931.0,61930.0,0.200767]
[1727812056989,0.25114659,61931.0,61930.0,0.011]
[1727812057426,0.05738259,61931.0,61925.0,0.000821]
[1727812057652,0.05638259,61931.0,61930.0,0.004]
[1727812057858,0.05738259,61931.0,61930.0,0.01]
[1727812058079,0.02530672,61931.0,61930.0,0.004]
[1727812058507,0.02530672,61931.0,61930.0,0.008]
[1727812058723,0.02530672,61931.0,61930.0,0.197767]
[1727812058937,0.02730672,61931.0,61930.0,0.193767]
[1727812059359,0.13841256,61931.0,61928.0,0.193773]
[1727812059580,0.13841256,61931.0,61927.0,0.193776]
[1727812060003,0.13841256,61931.0,61928.0,0.193772]
[1727812060238,0.13841256,61931.0,61926.0,0.193778]
[1727812060452,0.33599172,61927.0,61925.0,0.000821]
[1727812060685,0.4411368,61926.0,61925.0,0.000821]
[1727812061855,0.5197368,61926.0,61925.0,0.000821]
[1727812062094,0.5197368,61926.0,61925.0,0.003821]
[1727812063036,0.5257368,61926.0,61925.0,0.004821]
[1727812063279,0.68218358,61926.0,61925.0,0.004821]
[1727812063502,0.68218358,61926.0,61925.0,0.001821]
[1727812063950,0.68718358,61926.0,61925.0,0.002821]
[1727812064382,1.0231753,61926.0,61925.0,0.002821]
[1727812069706,0.91125979,61926.0,61925.0,0.002821]
[1727812072761,0.5307368,61926.0,61925.0,0.002821]
[1727812072969,0.75481301,61926.0,61925.0,0.002821]
[1727812073604,0.67621301,61926.0,61925.0,0.002821]
[1727812078972,0.48243401,61926.0,61925.0,0.002821]
[1727812079384,0.67621301,61926.0,61925.0,0.002821]
[1727812080269,0.83265979,61926.0,61925.0,0.002821]
[1727812081969,0.83465979,61926.0,61925.0,0.002821]
[1727812082190,0.83265979,61926.0,61925.0,0.002821]
[1727812082431,0.72884065,61926.0,61925.0,0.002821]
[1727812082702,0.67621301,61926.0,61925.0,0.002821]
[1727812082949,0.2583578,61926.0,61925.0,0.002821]
[1727812083193,0.011,61926.0,61925.0,0.196603]
[1727812083892,0.005,61926.0,61925.0,0.195603]
[1727812084407,0.005,61926.0,61925.0,0.218603]
[1727812084667,0.02530672,61931.0,61930.0,0.216767]
[1727812084918,0.02530672,61931.0,61930.0,0.295467]
[1727812086020,0.02630672,61931.0,61930.0,0.199767]
[1727812086227,0.02530672,61931.0,61930.0,0.193767]
[1727812086450,0.02530672,61931.0,61930.0,0.200767]
[1727812086451,0.02630672,61931.0,61930.0,0.200767]
[1727812087391,0.02730672,61931.0,61930.0,0.212767]
[1727812087597,0.02630672,61931.0,61930.0,0.205767]
[1727812087811,0.02630672,61931.0,61930.0,0.193767]
[1727812087812,0.02530672,61931.0,61930.0,0.193767]
[1727812088024,0.02630672,61931.0,61930.0,0.199767]
[1727812088264,0.02630672,61931.0,61930.0,0.200767]
[1727812088481,0.02630672,61931.0,61930.0,0.223767]
[1727812088716,0.02730672,61931.0,61930.0,0.229767]
[1727812088930,0.02730672,61931.0,61930.0,0.312467]
[1727812089151,0.02730672,61931.0,61930.0,0.31569573]
[1727812090045,0.02730672,61931.0,61930.0,0.30869573]
[1727812090046,0.02630672,61931.0,61930.0,0.30869573]
[1727812090290,0.02730672,61931.0,61930.0,0.31569573]
[1727812090780,0.02530672,61931.0,61930.0,0.299467]
[1727812091014,0.02730672,61931.0,61930.0,0.297467]
[1727812091230,0.02630672,61931.0,61930.0,0.206767]
[1727812091698,0.02730672,61931.0,61930.0,0.219767]
[1727812091917,0.24610901,61931.0,61930.0,0.026]
[1727812092157,0.02730672,61931.0,61930.0,0.026]
[1727812092405,0.02730672,61931.0,61930.0,0.219767]
[1727812093052,0.02630672,61931.0,61930.0,0.013]
[1727812093273,0.02630672,61931.0,61930.0,0.017]
[1727812093728,0.02630672,61931.0,61930.0,0.013]
[1727812093949,0.02630672,61931.0,61930.0,0.206767]
[1727812094173,0.02630672,61931.0,61930.0,0.193767]
[1727812094404,0.02630672,61931.0,61925.0,0.388385]
[1727812094405,0.193767,61930.0,61925.0,0.388386]
[1727812094653,0.29973129,61931.0,61930.0,0.006]
[1727812094877,0.29973129,61931.0,61925.0,0.194601]
[1727812094878,0.02630672,61931.0,61927.0,0.193774]
[1727812095095,0.22007172,61931.0,61926.0,0.193779]
[1727812095310,0.22007172,61931.0,61930.0,0.002]
[1727812095543,0.02630672,61931.0,61930.0,0.002]
[1727812095773,0.02630672,61931.0,61930.0,0.195767]
[1727812096463,0.02630672,61931.0,61930.0,0.274567]
[1727812096682,0.02530672,61931.0,61930.0,0.272567]
[1727812097100,0.02530672,61931.0,61930.0,0.273567]
[1727812097604,0.02530672,61931.0,61930.0,0.272567]
[1727812098026,0.02530672,61931.0,61930.0,0.278567]
[1727812098708,0.02630672,61931.0,61930.0,0.286567]
[1727812099626,0.02630672,61931.0,61930.0,0.280567]
[1727812099867,0.02630672,61931.0,61930.0,0.30679611]
[1727812100106,0.02630672,61931.0,61930.0,0.31279611]
[1727812100554,0.02630672,61931.0,61930.0,0.309567]
[1727812101221,0.02630672,61931.0,61930.0,0.230767]
[1727812101433,0.02630672,61931.0,61930.0,0.207767]
[1727812101876,0.58887131,61931.0,61930.0,0.014]
[1727812102330,0.55156511,61931.0,61930.0,0.014]
[1727812102551,0.02630672,61931.0,61930.0,0.207767]
[1727812102790,0.02630672,61931.0,61930.0,0.2109963]
[1727812103004,0.02630672,61931.0,61930.0,0.21099558]
[1727812103226,0.02630672,61931.0,61930.0,0.207767]
[1727812103455,0.02630672,61931.0,61930.0,0.230767]
[1727812104369,0.02630672,61931.0,61930.0,0.207767]
[1727812106704,0.04831239,61931.0,61930.0,0.014]
[1727812106951,0.41147639,61931.0,61930.0,0.014]
[1727812108112,0.56793419,61931.0,61930.0,0.01482]
[1727812108759,0.56793419,61931.0,61930.0,0.00682]
[1727812108760,0.56693419,61931.0,61930.0,0.00682]
[1727812109006,0.56693419,61931.0,61930.0,0.00082]
[1727812109268,0.56993419,61931.0,61930.0,0.00082]
[1727812109492,0.57293419,61931.0,61930.0,0.00082]
[1727812109929,0.6211085,61931.0,61930.0,0.00082]
[1727812111030,0.57293419,61931.0,61930.0,0.00082]
[1727812111516,0.62104664,61931.0,61930.0,0.00082]
[1727812111748,0.64510287,61931.0,61930.0,0.00082]
[1727812111977,0.89226035,61931.0,61930.0,0.00082]
[1727812112509,0.990535,61931.0,61930.0,0.00082]
[1727812112836,0.65092852,61931.0,61930.0,0.00082]
[1727812113049,0.72310105,61931.0,61930.0,0.00082]
[1727812113298,0.52354473,61931.0,61930.0,0.00082]
[1727812113532,0.47542852,61931.0,61930.0,0.00082]
[1727812113823,0.83646299,61931.0,61930.0,0.00082]
[1727812114311,1.22815004,61931.0,61930.0,0.00082]
[1727812114314,1.13192349,61931.0,61930.0,0.00082]
[1727812114562,1.35215853,61931.0,61930.0,0.00082]
[1727812114827,1.28449787,61931.0,61930.0,0.00082]
[1727812115309,0.51403874,61926.0,61925.0,0.000821]
[1727812115549,0.49462389,61926.0,61925.0,0.000821]
[1727812115793,0.67049654,61926.0,61925.0,0.000821]
[1727812116057,0.7185833,61926.0,61925.0,0.000821]
[1727812116303,0.76328943,61926.0,61925.0,0.000821]
[1727812116534,0.74262368,61926.0,61925.0,0.000821]
[1727812117011,0.7185857,61926.0,61925.0,0.000821]
[1727812117280,0.4525368,61926.0,61925.0,0.001821]
[1727812117543,0.2587578,61926.0,61925.0,0.001821]
[1727812117806,0.006,61926.0,61925.0,0.195603]
[1727812118063,0.013,61926.0,61925.0,0.196603]
[1727812118589,0.007,61926.0,61925.0,0.195603]
[1727812119050,0.013,61926.0,61925.0,0.219603]
[1727812119281,0.006,61926.0,61925.0,0.218603]
[1727812119731,0.012,61926.0,61925.0,0.219603]
[1727812120187,0.02530672,61931.0,61930.0,0.193767]
[1727812121969,0.02530672,61931.0,61927.0,0.387551]
[1727812122876,0.02530672,61931.0,61930.0,0.198767]
[1727812123336,0.02530672,61931.0,61930.0,0.193767]
[1727812123560,0.02530672,61931.0,61930.0,0.199767]
[1727812123561,0.02630672,61931.0,61930.0,0.199767]
[1727812123785,0.09008337,61931.0,61930.0,0.006]
[1727812124246,0.02630672,61931.0,61930.0,0.199767]
[1727812124469,0.02630672,61931.0,61930.0,0.011]
[1727812124701,0.02630672,61931.0,61930.0,0.204767]
[1727812129594,0.02630672,61931.0,61930.0,0.230996]
[1727812129824,0.02630672,61931.0,61930.0,0.309067]
[1727812130276,0.02530672,61931.0,61930.0,0.298067]
[1727812130713,0.02630672,61931.0,61930.0,0.304067]
[1727812130937,0.02530672,61931.0,61930.0,0.298067]
[1727812131186,0.02630672,61931.0,61930.0,0.307067]
[1727812132308,0.02630672,61931.0,61930.0,0.311067]
[1727812132537,0.02630672,61931.0,61930.0,0.229767]
[1727812132766,0.02630672,61931.0,61930.0,0.202767]
[1727812132992,0.02630672,61931.0,61930.0,0.203587]
[1727812133225,0.02794672,61931.0,61930.0,0.210587]
[1727812133462,0.02794672,61931.0,61930.0,0.01682]
[1727812133713,0.72349813,61931.0,61930.0,0.01682]
[1727812134584,0.70132826,61931.0,61930.0,0.00982]
[1727812135180,0.70132826,61931.0,61930.0,0.01482]
[1727812135659,0.70132826,61931.0,61930.0,0.00982]
[1727812135892,0.70032826,61931.0,61930.0,0.00082]
[1727812136112,0.47636852,61931.0,61930.0,0.00082]
[1727812136312,0.47636852,61931.0,61930.0,0.00182]
[1727812136730,0.47636852,61931.0,61930.0,0.00382]
[1727812137128,0.47636852,61931.0,61930.0,0.00182]
[1727812137346,0.47636852,61931.0,61930.0,0.00282]
[1727812137560,0.47636852,61931.0,61930.0,0.00182]
[1727812139486,0.6328153,61931.0,61930.0,0.00182]
[1727812140147,0.4390513,61931.0,61930.0,0.00182]
[1727812140340,0.6328153,61931.0,61930.0,0.00182]
[1727812140553,0.47636852,61931.0,61930.0,0.00182]
[1727812141649,0.63066284,61931.0,61930.0,0.00182]
[1727812141854,0.77883712,61931.0,61930.0,0.00182]
[1727812142065,0.7535304,61931.0,61930.0,0.00182]
[1727812142273,0.90997718,61931.0,61930.0,0.00182]
[1727812142754,0.90997718,61931.0,61930.0,0.00082]
[1727812143198,1.01397718,61931.0,61930.0,0.00082]
[1727812143414,1.21524596,61931.0,61930.0,0.00082]
[1727812143633,1.07065731,61931.0,61930.0,0.00082]
[1727812143850,1.06665731,61931.0,61930.0,0.00082]
[1727812144067,1.01897718,61931.0,61930.0,0.00082]
[1727812144286,0.91120295,61931.0,61930.0,0.00082]
[1727812144504,0.98400566,61931.0,61930.0,0.00082]
[1727812144745,0.18312803,61931.0,61930.0,0.00082]
[1727812144957,0.01164,61931.0,61930.0,0.194587]
[1727812145180,0.00664,61931.0,61930.0,0.194587]
[1727812145431,0.01164,61931.0,61930.0,0.278787]
[1727812145629,0.02464,61931.0,61930.0,0.52674674]
[1727812145840,0.00164,61931.0,61930.0,0.52474674]
[1727812146327,0.00164,61931.0,61930.0,0.300787]
[1727812146785,0.00164,61931.0,61930.0,0.195587]
[1727812146999,0.00164,61931.0,61930.0,0.194587]
[1727812147210,0.00264,61931.0,61930.0,0.198587]
[1727812147660,0.1600978,61931.0,61930.0,0.01282]
[1727812147866,0.51436324,61931.0,61930.0,0.01282]
[1727812148095,0.56255907,61931.0,61930.0,0.01282]
[1727812148325,0.83137847,61931.0,61930.0,0.00482]
[1727812148567,0.32933481,61931.0,61930.0,0.00482]
[1727812148804,0.32933481,61931.0,61930.0,0.01082]
[1727812149034,0.32933481,61931.0,61930.0,0.00682]
[1727812149035,0.32833481,61931.0,61930.0,0.00682]
[1727812149283,0.32933481,61931.0,61930.0,0.00682]
[1727812149748,0.2569978,61931.0,61930.0,0.00082]
[1727812149975,0.2639978,61931.0,61930.0,0.00182]
[1727812150251,0.2629978,61931.0,61930.0,0.00082]
[1727812150470,0.4647618,61931.0,61930.0,0.00082]
[1727812150738,0.2569978,61931.0,61930.0,0.00082]
[1727812151010,0.2589978,61931.0,61930.0,0.00082]
[1727812151236,0.10654,61931.0,61930.0,0.00082]
[1727812151725,0.17887701,61931.0,61930.0,0.00082]
[1727812152451,0.81185137,61931.0,61930.0,0.00082]
[1727812153209,0.81186101,61931.0,61930.0,0.00082]
[1727812153441,1.04072588,61931.0,61930.0,0.00082]
[1727812153659,1.23804178,61931.0,61930.0,0.00082]
[1727812153878,1.09345428,61931.0,61930.0,0.00082]
[1727812154102,1.407007,61931.0,61930.0,0.00082]
[1727812154310,1.403007,61931.0,61930.0,0.00082]
[1727812154537,1.40171833,61931.0,61930.0,0.00082]
[1727812154945,1.50171833,61931.0,61930.0,0.00082]
[1727812155160,1.50171833,61931.0,61925.0,0.000821]
[1727812155161,0.284679,61926.0,61925.0,0.000821]
[1727812155377,0.284707,61917.0,61916.0,0.25535877]
[1727812155599,0.73741862,61917.0,61916.0,0.25535877]
[1727812155818,0.73741862,61917.0,61916.0,0.0147891]
[1727812155819,1.00739565,61917.0,61916.0,0.0147891]
[1727812156030,0.8940633,61917.0,61916.0,0.0147891]
[1727812156237,0.88690551,61917.0,61916.0,0.0147891]
[1727812156448,0.91222092,61917.0,61916.0,0.0147891]
[1727812157083,0.92222092,61917.0,61916.0,0.0147891]
[1727812157297,0.193854,61902.0,61901.0,0.00082]
[1727812157506,0.3503118,61902.0,61901.0,0.00082]
[1727812157940,0.4433118,61902.0,61901.0,0.00082]
[1727812158152,0.64793568,61902.0,61901.0,0.00082]
[1727812158420,0.2494578,61902.0,61901.0,0.00082]
[1727812158640,0.1564578,61902.0,61901.0,0.00082]
[1727812159738,0.1574578,61902.0,61901.0,0.00082]
[1727812159942,0.1584578,61902.0,61901.0,0.00082]
[1727812161261,0.002,61902.0,61901.0,0.194677]
[1727812163232,0.002,61902.0,61901.0,0.00082]
[1727812164334,0.002,61902.0,61901.0,0.194677]
[1727812165996,0.002,61902.0,61901.0,0.00082]
[1727812166276,0.27826407,61902.0,61901.0,0.00082]
[1727812166516,0.43472187,61902.0,61901.0,0.00082]
[1727812169286,0.52842187,61902.0,61901.0,0.00082]
[1727812171450,0.4460118,61902.0,61901.0,0.00082]
[1727812173807,0.45325514,61902.0,61901.0,0.00082]
[1727812175838,0.63015514,61902.0,61901.0,0.00082]
[1727812176060,0.63015514,61902.0,61882.0,0.24056967]
[1727812176061,0.193895,61889.0,61882.0,0.24056967]
[1727812176297,0.69290204,61889.0,61882.0,0.24056967]
[1727812176512,0.7000328,61889.0,61882.0,0.24056967]
[1727812176939,0.7000328,61889.0,61881.0,0.00082]
[1727812177157,0.69290204,61889.0,61881.0,0.00082]
[1727812177832,0.67331254,61889.0,61881.0,0.00082]
[1727812178044,0.2554578,61889.0,61885.0,0.193906]
[1727812178333,0.2554578,61889.0,61881.0,0.194738]
[1727812178555,0.007,61889.0,61883.0,0.0799]
[1727812178776,0.007,61889.0,61888.0,0.194818]
[1727812178992,0.014,61889.0,61888.0,0.194818]
[1727812179213,0.007,61889.0,61888.0,0.194818]
[1727812179443,0.193865,61899.0,61894.0,0.182878]
[1727812179668,0.193865,61899.0,61888.0,0.194818]
[1727812179669,0.007,61889.0,61888.0,0.194818]
[1727812180109,0.007,61889.0,61888.0,0.274718]
[1727812180987,0.007,61889.0,61888.0,0.194818]
[1727812181450,0.193873,61896.0,61892.0,0.193884]
[1727812181669,0.39702747,61895.0,61892.0,0.193884]
[1727812181870,0.1564578,61895.0,61892.0,0.193884]
[1727812182121,0.02532305,61896.0,61895.0,0.193876]
[1727812183224,0.02532305,61896.0,61895.0,0.189876]
[1727812183477,0.02832305,61896.0,61895.0,0.189876]
[1727812184105,0.02832305,61896.0,61895.0,0.265476]
[1727812184546,0.02532305,61896.0,61895.0,0.265476]
[1727812184878,0.02532305,61896.0,61895.0,0.266476]
[1727812185192,0.02532305,61896.0,61895.0,0.265476]
[1727812185421,0.02632305,61896.0,61895.0,0.271476]
[1727812185851,0.02532305,61896.0,61895.0,0.271476]
[1727812186077,0.02632305,61896.0,61895.0,0.265476]
[1727812186324,0.02532305,61896.0,61895.0,0.275476]
[1727812186582,0.02632305,61896.0,61895.0,0.275476]
[1727812186808,0.02632305,61896.0,61895.0,0.199876]
[1727812187553,0.02632305,61896.0,61895.0,0.189876]
[1727812187787,0.02532305,61896.0,61895.0,0.194876]
[1727812188026,0.02632305,61896.0,61895.0,0.005]
[1727812188266,0.24257185,61896.0,61895.0,0.005]
[1727812188531,0.25054397,61896.0,61895.0,0.005]
[1727812188774,0.44441697,61896.0,61895.0,0.005]
[1727812189000,0.193888,61892.0,61888.0,0.00092]
[1727812189234,0.193887,61892.0,61888.0,0.00092]
[1727812189464,0.0079741,61891.0,61888.0,0.00092]
[1727812190176,0.0079741,61891.0,61888.0,0.194818]
[1727812190931,0.0079741,61891.0,61888.0,0.00092]
[1727812191717,0.0089741,61891.0,61890.0,0.193892]
[1727812191967,0.0089741,61891.0,61888.0,0.194816]
[1727812192222,0.0089741,61891.0,61890.0,0.193892]